Cogmind - Beta 9.1 @@@ ROGUE MODE // 2019.11.02 @ 00:40:58 Player: MrPainting Result: Self-destructed Performance ------------- Evolutions (1) 500 Regions Visited (3) 600 Robots Destroyed (16) 80 Value Destroyed (452) 452 Prototype IDs (2) 40 Alien Tech Used (0) 0 Bonus (0) 0 TOTAL SCORE: 1672 Bonus ------- None Cogmind --------- Core Integrity 370/400 Matter 8/450 Energy 99/100 System Corruption 0% Temperature Cool (1) Location -9/Materials Parts ------- Power (1) Propulsion (4) Hover Unit Flight Unit Utility (2) Compact Matter Pod Weapon (2) Inventory (4) Compact Matter Pod (0) Grenade Launcher Grenade Launcher Grenade Launcher Peak State ------------ Power Light Ion Engine Propulsion Hover Unit Flight Unit Utility Compact Matter Pod Compact Matter Pod Weapon Flak Cannon Flak Cannon Inventory Maneuvering Thrusters Grenade Launcher Grenade Launcher Grenade Launcher [Rating: 15] Favorites ----------- Power Light Ion Engine Engine Light Ion Engine Propulsion Hover Unit Treads Light Treads Leg Aluminum Leg Hover Unit Hover Unit Flight Unit Flight Unit Utility Compact Matter Pod Device Maneuvering Thrusters Storage Compact Matter Pod Weapon Grenade Launcher Energy Gun Small Laser Ballistic Gun Light Assault Rifle Ballistic Cannon Flak Cannon Launcher Grenade Launcher Build | -11 -10 -10 -9 ------- Run | Scr Mat Min Mat Slots Evolved 2 | . . . 2 Power . | . . . . Propulsion 2 | . . . 2 Utility . | . . . . Weapon . | . . . . Parts Attached 26 | 4 11 . 11 Power 1 | . 1 . . Engine 1 | . 1 . . Core . | . . . . Reactor . | . . . . Propulsion 6 | 1 5 . . Treads 1 | . 1 . . Leg 3 | 1 2 . . Wheel . | . . . . Hover 1 | . 1 . . Flight 1 | . 1 . . Utility 5 | . 2 . 3 Device 2 | . 1 . 1 Storage 3 | . 1 . 2 Processor . | . . . . Hackware . | . . . . Protection . | . . . . Artifact . | . . . . Weapon 14 | 3 3 . 8 Energy Gun 1 | 1 . . . Energy Cannon . | . . . . Ballistic Gun 2 | 2 . . . Ballistic Cannon 4 | . . . 4 Launcher 7 | . 3 . 4 Special Weapon . | . . . . Impact Weapon . | . . . . Slashing Weapon . | . . . . Piercing Weapon . | . . . . Special Melee Weapon . | . . . . Unidentified Prototypes . | . . . . Parts Lost 5 | . 3 . 2 Power 1 | . . . 1 Propulsion 1 | . 1 . . Utility 1 | . . . 1 Weapon 2 | . 2 . . Highest Loss Streak 3 | . 3 . 2 Average Slot Usage (%) 72 | . 67 85 74 Engine 10 | . 9 14 9 Leg 5 | . 12 . . Hover 7 | . 3 14 11 Flight 7 | . 3 14 11 Device 6 | . 2 14 9 Storage 8 | . 7 . 11 Ballistic Gun 8 | . 18 . . Ballistic Cannon 4 | . . . 9 Launcher 12 | . 8 28 12 Naked Turns . | . . . . Heaviest Build 17 | 2 15 10 17 Greatest Support 20 | 10 20 6 6 Greatest Overweight (x) 2 | . 1 1 2 Average Overweight (x) . | . . 1 1 Largest Inventory Capacity 8 | 4 8 4 4 Average Capacity 4 | 4 6 4 4 Most Carried 8 | 4 8 3 4 Average Carried 4 | 3 5 3 3 Final Capacity 4 | 4 4 4 4 Final Carried 4 | 4 3 3 4 Class Distribution -------------------- 100% | Mutant Dominant Class ---------------- Mutant | -10/Materials Mutant | -10/Mines Mutant | -9/Materials Resources | -11 -10 -10 -9 ----------- Run | Scr Mat Min Mat Matter Collected 419 | 147 194 36 42 Remotely . | . . . . Salvage Created 358 | . 230 57 71 Parts 32 | . 23 1 8 Haulers Intercepted 1 | . 1 . . Recyclers Shooed . | . . . . Parts Field Recycled . | . . . . Retrieved Matter . | . . . . Parts Self-Destructed . | . . . . Prevented . | . . . . Kills | -11 -10 -10 -9 ------- Run | Scr Mat Min Mat Combat Hostiles Destroyed 12 | . 8 2 2 Guns 3 | . 3 . . Cannons 1 | . . . 1 AOE 8 | . 5 2 1 Classes Destroyed 7 | . 5 . 2 Builder 1 | . . . 1 Hauler 1 | . 1 . . Operator 1 | . 1 . . Watcher 1 | . 1 . . Swarmer 3 | . 3 . . Grunt 8 | . 5 2 1 Sentry 1 | . . . 1 Best Kill Streak 7 | . 7 2 2 Combat Bots Only 5 | . 5 2 1 Max Kills in Single Turn 2 | . 1 2 2 Gunslinging . | . . . . Exploded 2 | . 1 2 1 Melee . | . . . . Uniques/NPCs Destroyed . | . . . . Combat | -11 -10 -10 -9 -------- Run | Scr Mat Min Mat Damage Taken 734 | . 542 48 144 Core 79 | . 29 20 30 Absorbed by Shields . | . . . . Core Remaining (%) 90 | 100 . 80 . Volleys Fired 30 | . 24 1 5 Largest 2 | . 2 2 2 Hottest 60 | . 60 60 60 Shots Fired 48 | . 37 2 9 Gun 24 | . 24 . . Cannon 1 | . . . 1 Launcher 23 | . 13 2 8 Special . | . . . . Kinetic 25 | . 24 . 1 Thermal . | . . . . Explosive 23 | . 13 2 8 Electromagnetic . | . . . . Robot Hit Streak 16 | . 10 . 16 Robot Miss Streak 2 | . 2 . 2 Penetration Max . | . . . . Secondary Targets . | . . . . Shots Hit Robots 27 | . 22 . 5 Core Hits 28 | . 19 3 6 Critical Hits . | . . . . Critical Kills . | . . . . Critical Parts Destroyed . | . . . . Melee Attacks . | . . . . Impact . | . . . . Slashing . | . . . . Piercing . | . . . . Sneak Attacks . | . . . . Combat Hostiles . | . . . . Follow-up Attacks . | . . . . Damage Inflicted 1064 | . 805 84 175 Guns 163 | . 163 . . Cannons 25 | . . . 25 Explosions 876 | . 642 84 150 Melee . | . . . . Ramming . | . . . . Kinetic 188 | . 163 . 25 Thermal . | . . . . Explosive 876 | . 642 84 150 Electromagnetic . | . . . . Impact . | . . . . Slashing . | . . . . Piercing . | . . . . Highest Corruption 9 | . 9 9 . Average Corruption 9 | . 9 9 . Corruption Purged . | . . . . Effects 6 | . 4 2 . Message Errors 3 | . 2 1 . Matter Fused 2 | . 2 . . Data Loss (minor) 1 | . . 1 . Overload Shots . | . . . . Overflow Damage 45 | . 45 . . Projectiles . | . . . . Explosions 45 | . 45 . . Melee . | . . . . Knockbacks . | . . . . Impact . | . . . . Kinetic . | . . . . Secondary . | . . . . Self-Inflicted Damage 74 | . . 48 26 Shots 3 | . . 2 1 Rammed . | . . . . Targets Rammed . | . . . . Kicked . | . . . . Crushed . | . . . . Highest Temperature 18 | . 18 3 2 Average Temperature 5 | . 6 2 2 Received Heat Transfer 150 | . 114 . 36 Siege Activations . | . . . . Robots Corrupted . | . . . . Combat Hostiles . | . . . . Parts Fried . | . . . . Impact Corruptions . | . . . . Robots Melted . | . . . . Combat Hostiles . | . . . . Parts Melted . | . . . . Heat Transferred . | . . . . Parts Sabotaged . | . . . . Parts Stolen . | . . . . Parts Stripped . | . . . . Power Chain Reactions . | . . . . Missiles Intercepted . | . . . . Alert | -11 -10 -10 -9 ------- Run | Scr Mat Min Mat Peak Influence 269 | . 269 154 161 Average Influence 101 | . 125 154 81 Maximum Alert Level 1 | . 1 . . Low Security (%) 85 | . . . . Level 1 14 | . . . . Level 2 . | . . . . Level 3 . | . . . . Level 4 . | . . . . Level 5 . | . . . . High Security . | . . . . Max Security . | . . . . Squads Dispatched 3 | . 1 . 2 Investigation 2 | . 1 . 1 Extermination . | . . . . Reinforcement 1 | . . . 1 Assault . | . . . . Garrison . | . . . . Intercept . | . . . . Construction Impeded . | . . . . Haulers Reinforced . | . . . . Stealth | -11 -10 -10 -9 --------- Run | Scr Mat Min Mat Distress Signals 1 | . 1 . . Communications Jammed . | . . . . Distress Signals . | . . . . Times Spotted 15 | . 11 . 4 Peak Tracking Total 3 | . 3 . 2 Tactical Retreats . | . . . . Traps | -11 -10 -10 -9 ------- Run | Scr Mat Min Mat Traps Triggered 2 | . 1 . 1 Indirectly . | . . . . Trap Hack Attempts . | . . . . Triggered . | . . . . Disarmed . | . . . . Reprogrammed . | . . . . Reused . | . . . . Traps Extracted . | . . . . Installed . | . . . . Triggered . | . . . . Machines | -11 -10 -10 -9 ---------- Run | Scr Mat Min Mat Machines Disabled 4 | . 4 . . Max in Single Turn 2 | . 2 . . Machines Sabotaged . | . . . . Garrisons Compromised . | . . . . Overloaded Fab Kills . | . . . . Fab Network Shutdowns . | . . . . Hacking | -11 -10 -10 -9 --------- Run | Scr Mat Min Mat Machines Accessed 5 | . 1 . 4 Terminals 4 | . 1 . 3 Fabricators . | . . . . Repair Stations . | . . . . Recycling Units . | . . . . Scanalyzers 1 | . . . 1 Garrison Access . | . . . . Total Hacks 15 | . 2 . 13 Successful 8 | . 1 . 7 Failed 7 | . 1 . 6 Catastrophic 1 | . . . 1 Database Lockouts . | . . . . Manual 5 | . . . 5 Terminals 11 | . 2 . 9 Fabricators . | . . . . Repair Stations . | . . . . Recycling Units . | . . . . Scanalyzers 4 | . . . 4 Garrison Access . | . . . . Terminal Hacks 2 | . 1 . 1 Prototype ID Bank 1 | . . . 1 Branch Access Points 1 | . 1 . . Fabricator Hacks . | . . . . Repair Station Hacks . | . . . . Recycling Unit Hacks . | . . . . Scanalyzer 4 | . . . 4 Insert Component 2 | . . . 2 Analyze 2 | . . . 2 Garrison Access Hacks . | . . . . Unauthorized Hacks 5 | . . . 5 Terminals 2 | . . . 2 Botnet 2 | . . . 2 Fabricators . | . . . . Repair Stations . | . . . . Recycling Units . | . . . . Scanalyzers . | . . . . Garrison Access . | . . . . Data Cores Recovered . | . . . . Used . | . . . . Hacking Detections 4 | . 1 . 3 Full Trace Events 1 | . . . 1 Feedback Events . | . . . . Feedback Blocked . | . . . . Robot Schematics Acquired . | . . . . Robots Built . | . . . . Matter . | . . . . Time . | . . . . Total Robot Build Rating . | . . . . Part Schematics Acquired 2 | . . . 2 Parts Built . | . . . . Matter . | . . . . Time . | . . . . Total Part Build Rating . | . . . . Parts Repaired . | . . . . Time . | . . . . Parts Recycled . | . . . . Recycled Matter . | . . . . Retrieved Matter . | . . . . Retrieved Components . | . . . . Parts Scanalyzed 2 | . . . 2 Part Schematics Acquired 2 | . . . 2 Parts Damaged . | . . . . Bothacking | -11 -10 -10 -9 ------------ Run | Scr Mat Min Mat Used RIF Installer . | . . . . Robots Hacked . | . . . . Non-combat . | . . . . Combat . | . . . . Robot Hacks Applied . | . . . . Relay Couplers Released . | . . . . Robots Rewired . | . . . . Allies Hacked . | . . . . Hacks Repelled . | . . . . Allies | -11 -10 -10 -9 -------- Run | Scr Mat Min Mat Total Allies . | . . . . Largest Group . | . . . . Highest-Rated Group . | . . . . Highest-Rated Ally . | . . . . Total Orders . | . . . . Ally Attacks . | . . . . Total Damage . | . . . . Kills . | . . . . Allies Corrupted . | . . . . Allies Melted . | . . . . Intel | -11 -10 -10 -9 ------- Run | Scr Mat Min Mat Robot Analysis Total . | . . . . Derelict Logs Recovered 1 | . . 1 . Drone Launches . | . . . . Drone Recoveries . | . . . . Exploration | -11 -10 -10 -9 ------------- Run | Scr Mat Min Mat Turns Passed 548 | 38 238 54 218 Spaces Moved 373 | 54 155 43 121 Core 102 | 53 49 . . Treads 8 | . 8 . . Legs 53 | 1 52 . . Wheels . | . . . . Hover 210 | . 46 43 121 Flight . | . . . . Fastest Speed 50 | 50 50 120 60 Average Speed 110 | 51 98 120 149 Slowest Speed 180 | 120 160 120 180 Overloaded Moves . | . . . . Propulsion Burnouts . | . . . . Robots Hopped . | . . . . Cave-ins Triggered 1 | . 1 . . Exploration Rate (%) 16 | 3 38 10 14 Regions Visited 3 Branch Regions 1 Pre-discovered Areas . | . . . . Known Exits Taken 1 | . 1 . . Unknown Exits Taken 2 | 1 . 1 . Scrap Searched . | . . . . Spaces Dug . | . . . . Terrain Destroyed 139 | . 70 17 52 Melee . | . . . . Projectile . | . . . . AOE 139 | . 70 17 52 Actions | -11 -10 -10 -9 --------- Run | Scr Mat Min Mat Total 458 | 62 207 43 146 Wait 3 | . 3 . . Move 370 | 53 154 42 121 Hop . | . . . . Pick Up 19 | 4 10 . 5 Fast Attach 6 | 2 3 . 1 Attach 9 | 1 6 . 2 Detach 1 | 1 . . . Swap 11 | 1 2 . 8 Drop 9 | . 5 . 4 Fire 30 | . 24 1 5 Melee . | . . . . Ram . | . . . . Kick . | . . . . Crush . | . . . . Escape Stasis . | . . . . Rewire . | . . . . Trap . | . . . . Miscellaneous . | . . . . Route ------- -11/Scrapyard -10/Materials -10/Mines -9/Materials History --------- Turn | Location | Event 11 | -11/Scrapyard | Discovered new exit (range 15) 39 | -11/Scrapyard | Entered Materials 50 | -10/Materials | Identified exit to Mines 209 | -10/Materials | Crushed by falling debris 240 | -10/Materials | Lost 3 parts (1n2w) 277 | -10/Materials | Entered Mines 318 | -10/Mines | Build established: Mutant 319 | -10/Mines | Assembled infested the area 319 | -10/Mines | Learned Materials stockpile data 322 | -10/Mines | Discovered new exit (range 6) 331 | -10/Mines | Entered Materials 331 | -9/Materials | Evolved 2 slots: Propulsion x2 549 | -9/Materials | Self-destructed Last Messages --------------- 00505_ U-05 Engineer lays Concrete. 00507_ U-05 Engineer builds a Wall. 00510_ R-06 Scavenger collects Sml. Laser. 00511_ U-05 Engineer lays Concrete. 00512_ The unstable cave ceiling collapses. 00512_ U-05 Engineer lays Concrete. 00512_ Acquired 28 matter. 00513_ R-06 Scavenger collects Ion Engine. 00514_ U-05 Engineer builds a Wall. 00525_ Lgt. Ion Engine destroyed. 00531_ Maneuvering Thrusters destroyed. 00532_ Y-45 Defender destroyed. 00535_ K-01 Serf collects debris. 00539_ Acquired 14 matter. 00541_ K-01 Serf collects debris. 00542_ The unstable cave ceiling collapses. 00545_ Triggered Blade Trap. 00545_ Massive razor-sharp blades shoot up from within the floor. 00545_ Flak Cannon severed. 00546_ K-01 Serf collects debris. Map ----- +----------------------------------------------------+ | ???????????????????# #???? | | ???????????????????# #???? | | ???????????????#?### ##???? | | ???????????????# # ##??? | | ?????????## #### ###* #??? | | ?????????# ##??? | | ?????????# == #???? | | ?????????# #???? | | ?????????# ##### = #???? | | ?????????# ?????# # #???? | | ???????????????? # ###???? | | ?????????????# "" # #?????? | | ?????????????# "T # #?????? | | ?????????????# "" # ####??? | | ?????????????? + #??? | | ?????????????+ ?#### ###? | | ?????????????# ?#### #### | | ?????????????#######?# # | | ???????????+########## w # | | ?????????? ## # | | ?????????? # | | ?????????? # | | ??????????? ?# ]k | | ??????????? ??# ^] # | | ???????????? ???### ### | | ????????????###?#??????# @ #?? | | ???????????????????????# #?? | | ???????????????????????# #?? | | ???????????????????????# #?? | | ??????????????????????? #?? | | ??????????????????????? #?? | | ?????????????????????? #?? | | ?????????????????????? #?? | | ?????????????????????####+##?? | | ?????????????????????????????? | | ?????????????????????????????? | | ?????????????????????????????? | | ?????????????????????????????? | | ?????????????????????????????? | | ?????????????????????????????? | | ?????????????????????????????? | | ?????????????????????????????? | | | | | | | | | | | | | | | | | +----------------------------------------------------+ Best States ------------- Heat Dissipation 28 Energy Generation 10 Energy Capacity 125 Matter Stores 298 Matter Capacity 600 Sight Range 16 Robot Scan Range 10 Terrain Scan Density 10 Evasion (%) 50 Recoil Reduction 1 Item Schematics ----------------- Com. Matter Pod | -9/Materials | Scanalyzed Flak Cannon | -9/Materials | Scanalyzed Robot Schematics ------------------ None Fabricated ------------ Nothing Alien Tech Used ----------------- None Achievements -------------- None Challenges ------------ None Game ------ Seed MetafieldPortableNeutralizer Manual? 0 Play Time 00:09:54 Cumulative 93.2 hours Start 2019.11.02 @ 00:31:39 End 2019.11.02 @ 00:40:58 Sessions 1 Manual Loads 0 Difficulty Rogue Special Mode None Game No. 148 Rogue 148 Adventurer 0 Explorer 0 Win Type - Total 0 Types 0/0/0/0/0/0/0 Lore% 31 Gallery% 45 Achievement% 33 Wizard Run 0 Options --------- ASCII 0 Keyboard 0 Movement Mouse Keybinds 0 Fullscreen 1 Font 18/SmallcapsGlow Map View 76x50 Tactical HUD 1 Map Filters NONE Filters NONE Steam 1 RUN: 51a79bcf-c1a8-4bb5-98f1-e49ac74cc581